[Event "*** SCC Grand Prix: Titled Tuesday Blitz"]
[Site "Chess.com"]
[Date "2020.06.23"]
[Round "7"]
[White "skoularikii"]
[Black "ChronicUnhappiness"]
[Result "1/2-1/2"]
[WhiteElo "2492"]
[BlackElo "2365"]
[TimeControl "180+1"]
[EndTime "11:18:56 PDT"]
[Termination "Game drawn - insufficient material"]

1. e4 {[%clk 0:03:00.9]} 1... d6 {[%clk 0:02:59.1]} 2. d4 {[%clk 0:03:00.2]}
2... Nf6 {[%clk 0:02:59.4]} 3. Nc3 {[%clk 0:02:59.9]} 3... g6 {[%clk 0:02:59.4]}
4. Nf3 {[%clk 0:02:56]} 4... Bg7 {[%clk 0:02:58.8]} 5. h3 {[%clk 0:02:56]} 5...
O-O {[%clk 0:02:58.5]} 6. Be2 {[%clk 0:02:54.3]} 6... c5 {[%clk 0:02:56.5]} 7.
O-O {[%clk 0:02:53.8]} 7... cxd4 {[%clk 0:02:55.6]} 8. Nxd4 {[%clk 0:02:54]}
8... Nc6 {[%clk 0:02:55.4]} 9. Be3 {[%clk 0:02:53.3]} 9... Nxd4 {[%clk
0:02:53.9]} 10. Bxd4 {[%clk 0:02:53.1]} 10... Be6 {[%clk 0:02:54]} 11. Qd3
{[%clk 0:02:49.9]} 11... a6 {[%clk 0:02:52]} 12. Qe3 {[%clk 0:02:49.5]} 12...
Nd7 {[%clk 0:02:49.5]} 13. Bxg7 {[%clk 0:02:44]} 13... Kxg7 {[%clk 0:02:50.4]}
14. Nd5 {[%clk 0:02:41.7]} 14... Bxd5 {[%clk 0:02:47.5]} 15. exd5 {[%clk
0:02:42.6]} 15... b5 {[%clk 0:02:41.5]} 16. a4 {[%clk 0:02:40.8]} 16... bxa4
{[%clk 0:02:37.3]} 17. Rxa4 {[%clk 0:02:39.6]} 17... a5 {[%clk 0:02:33]} 18.
Qd4+ {[%clk 0:02:30.2]} 18... Kg8 {[%clk 0:02:32.1]} 19. Bb5 {[%clk 0:02:27.7]}
19... Nc5 {[%clk 0:02:16.8]} 20. Ra3 {[%clk 0:02:27.1]} 20... Qb6 {[%clk
0:02:12.5]} 21. c4 {[%clk 0:02:17.5]} 21... Rab8 {[%clk 0:01:49.2]} 22. h4
{[%clk 0:02:15.2]} 22... h5 {[%clk 0:01:44.8]} 23. b3 {[%clk 0:02:10.1]} 23...
Qc7 {[%clk 0:01:14.8]} 24. Rfa1 {[%clk 0:02:05.7]} 24... e5 {[%clk 0:01:14.3]}
25. dxe6 {[%clk 0:02:02]} 25... Nxe6 {[%clk 0:01:13.6]} 26. Qf6 {[%clk
0:01:57.9]} 26... Ra8 {[%clk 0:00:51.3]} 27. Re1 {[%clk 0:01:45]} 27... Nc5
{[%clk 0:00:42.7]} 28. Re7 {[%clk 0:01:40.2]} 28... Qd8 {[%clk 0:00:42.4]} 29.
b4 {[%clk 0:01:28.2]} 29... Ne4 {[%clk 0:00:36.1]} 30. Qf4 {[%clk 0:01:01.3]}
30... Qxe7 {[%clk 0:00:35.7]} 31. Bc6 {[%clk 0:01:01.9]} 31... Rac8 {[%clk
0:00:28.8]} 32. b5 {[%clk 0:01:00.8]} 32... Nc5 {[%clk 0:00:26.6]} 33. g3 {[%clk
0:01:00.5]} 33... Qe5 {[%clk 0:00:26.3]} 34. Qf3 {[%clk 0:00:59.7]} 34... a4
{[%clk 0:00:24]} 35. b6 {[%clk 0:00:58.9]} 35... Qb2 {[%clk 0:00:17.9]} 36. b7
{[%clk 0:00:58.9]} 36... Rb8 {[%clk 0:00:17.8]} 37. Kg2 {[%clk 0:00:58.7]} 37...
Nxb7 {[%clk 0:00:17.5]} 38. Rxa4 {[%clk 0:00:56.8]} 38... Nc5 {[%clk 0:00:14.5]}
39. Ra7 {[%clk 0:00:57]} 39... Qe5 {[%clk 0:00:10.2]} 40. Bd5 {[%clk 0:00:56.7]}
40... Kh8 {[%clk 0:00:10.3]} 41. Qd1 {[%clk 0:00:54.3]} 41... Ne6 {[%clk
0:00:08.8]} 42. Qc1 {[%clk 0:00:54.3]} 42... Kg7 {[%clk 0:00:07.5]} 43. Rd7
{[%clk 0:00:52.9]} 43... Rb2 {[%clk 0:00:06.6]} 44. Re7 {[%clk 0:00:52.9]} 44...
Qd4 {[%clk 0:00:06.6]} 45. Qe1 {[%clk 0:00:50.4]} 45... Nc5 {[%clk 0:00:06.1]}
46. Ra7 {[%clk 0:00:48.4]} 46... Nd3 {[%clk 0:00:05.8]} 47. Qf1 {[%clk
0:00:42.2]} 47... Qxf2+ {[%clk 0:00:05.8]} 48. Qxf2 {[%clk 0:00:42.2]} 48...
Nxf2 {[%clk 0:00:06]} 49. Kg1 {[%clk 0:00:42.7]} 49... Nd3 {[%clk 0:00:06.4]}
50. Rb7 {[%clk 0:00:41.7]} 50... Ne5 {[%clk 0:00:07.3]} 51. Rxb2 {[%clk
0:00:40.9]} 51... Ng4 {[%clk 0:00:06.9]} 52. Kg2 {[%clk 0:00:41.1]} 52... Ne5
{[%clk 0:00:06.5]} 53. Re2 {[%clk 0:00:40.9]} 53... Rc8 {[%clk 0:00:06.7]} 54.
Kf2 {[%clk 0:00:40.4]} 54... Nxc4 {[%clk 0:00:06.3]} 55. Rc2 {[%clk 0:00:40.6]}
55... Nb6 {[%clk 0:00:05.9]} 56. Rxc8 {[%clk 0:00:40.6]} 56... Nxc8 {[%clk
0:00:06.8]} 57. Ke3 {[%clk 0:00:41.3]} 57... Ne7 {[%clk 0:00:07.5]} 58. Bb3
{[%clk 0:00:42.2]} 58... f5 {[%clk 0:00:07.7]} 59. Kf4 {[%clk 0:00:42.5]} 59...
Kf6 {[%clk 0:00:08.6]} 60. Bc4 {[%clk 0:00:42.7]} 60... d5 {[%clk 0:00:08.2]}
61. Bb3 {[%clk 0:00:43.4]} 61... d4 {[%clk 0:00:09.1]} 62. Bc4 {[%clk
0:00:43.4]} 62... Nc6 {[%clk 0:00:09.6]} 63. Bd5 {[%clk 0:00:41.3]} 63... Ne5
{[%clk 0:00:10.5]} 64. Bb3 {[%clk 0:00:41.3]} 64... Ng4 {[%clk 0:00:10.2]} 65.
Bc4 {[%clk 0:00:41.1]} 65... Ne5 {[%clk 0:00:10]} 66. Bb3 {[%clk 0:00:41.3]}
66... d3 {[%clk 0:00:10.2]} 67. Ke3 {[%clk 0:00:40.9]} 67... Ng4+ {[%clk
0:00:08.8]} 68. Kxd3 {[%clk 0:00:40.5]} 68... Ke5 {[%clk 0:00:09.7]} 69. Bf7
{[%clk 0:00:39.5]} 69... Nf2+ {[%clk 0:00:09.1]} 70. Ke3 {[%clk 0:00:39]} 70...
Ne4 {[%clk 0:00:10]} 71. Kf3 {[%clk 0:00:36.6]} 71... Kf6 {[%clk 0:00:09.9]} 72.
Be8 {[%clk 0:00:37]} 72... Nd6 {[%clk 0:00:08.5]} 73. Bc6 {[%clk 0:00:37.1]}
73... g5 {[%clk 0:00:08.8]} 74. Bd7 {[%clk 0:00:36.2]} 74... Nf7 {[%clk
0:00:06.4]} 75. Bc8 {[%clk 0:00:35.7]} 75... Ne5+ {[%clk 0:00:06.5]} 76. Ke3
{[%clk 0:00:36.2]} 76... g4 {[%clk 0:00:06.2]} 77. Kf4 {[%clk 0:00:35.6]} 77...
Ng6+ {[%clk 0:00:07.1]} 78. Ke3 {[%clk 0:00:35.7]} 78... Ke5 {[%clk 0:00:07.3]}
79. Bd7 {[%clk 0:00:34.7]} 79... f4+ {[%clk 0:00:08.2]} 80. gxf4+ {[%clk
0:00:34.6]} 80... Nxf4 {[%clk 0:00:09.1]} 81. Be8 {[%clk 0:00:34.9]} 81... Ng2+
{[%clk 0:00:08.6]} 82. Kf2 {[%clk 0:00:35.3]} 82... Nxh4 {[%clk 0:00:09.5]} 83.
Bxh5 {[%clk 0:00:35.7]} 83... Kf4 {[%clk 0:00:10.1]} 84. Bxg4 {[%clk 0:00:35.9]}
1/2-1/2

[Event "*** SCC Grand Prix: Titled Tuesday Blitz"]
[Site "Chess.com"]
[Date "2020.06.23"]
[Round "7"]
[White "vpsetter"]
[Black "rasmussvane"]
[Result "0-1"]
[WhiteElo "2614"]
[BlackElo "2882"]
[TimeControl "180+1"]
[EndTime "11:19:07 PDT"]
[Termination "rasmussvane won by resignation"]

1. e4 {[%clk 0:03:00.8]} 1... c6 {[%clk 0:03:00.1]} 2. d4 {[%clk 0:03:01]} 2...
d5 {[%clk 0:03:00.5]} 3. Nc3 {[%clk 0:03:01.6]} 3... dxe4 {[%clk 0:03:00.6]} 4.
Nxe4 {[%clk 0:03:02.1]} 4... Nf6 {[%clk 0:03:01.2]} 5. Nxf6+ {[%clk 0:03:02.4]}
5... exf6 {[%clk 0:03:02.1]} 6. c3 {[%clk 0:03:02.5]} 6... Bd6 {[%clk
0:03:02.7]} 7. Bd3 {[%clk 0:03:02]} 7... O-O {[%clk 0:03:03.6]} 8. Qc2 {[%clk
0:03:01.5]} 8... Re8+ {[%clk 0:03:04.5]} 9. Ne2 {[%clk 0:03:01.2]} 9... h5
{[%clk 0:03:05.4]} 10. Be3 {[%clk 0:02:57.3]} 10... Nd7 {[%clk 0:03:05.3]} 11.
O-O-O {[%clk 0:02:55.6]} 11... Nf8 {[%clk 0:03:05.6]} 12. Kb1 {[%clk 0:02:48]}
12... Be6 {[%clk 0:03:05.3]} 13. c4 {[%clk 0:02:44.1]} 13... Rc8 {[%clk
0:03:05.1]} 14. Nc3 {[%clk 0:02:41.1]} 14... Bb4 {[%clk 0:03:05]} 15. Ne4 {[%clk
0:02:38.9]} 15... Be7 {[%clk 0:02:48]} 16. h4 {[%clk 0:02:29.2]} 16... b5 {[%clk
0:02:46.9]} 17. Nc5 {[%clk 0:02:05.5]} 17... bxc4 {[%clk 0:02:35.1]} 18. Bxc4
{[%clk 0:02:01]} 18... Bxc5 {[%clk 0:02:21.5]} 19. dxc5 {[%clk 0:01:59.3]} 19...
Qa5 {[%clk 0:02:16.5]} 20. Rd6 {[%clk 0:01:54.2]} 20... Qb4 {[%clk 0:02:05.1]}
21. Rc1 {[%clk 0:01:07.7]} 21... Rc7 {[%clk 0:01:55.5]} 22. Bxe6 {[%clk
0:00:39.6]} 22... Nxe6 {[%clk 0:01:51.1]} 23. Qc4 {[%clk 0:00:40]} 23... Qa5
{[%clk 0:01:46.5]} 24. Qe4 {[%clk 0:00:35.3]} 24... Qb5 {[%clk 0:01:40.5]} 25.
Qd3 {[%clk 0:00:18.7]} 25... Qb7 {[%clk 0:01:31.2]} 26. Rc3 {[%clk 0:00:15.3]}
26... Qc8 {[%clk 0:01:16.5]} 27. Qf5 {[%clk 0:00:11.6]} 27... a5 {[%clk
0:01:04.3]} 28. Qxh5 {[%clk 0:00:11.2]} 28... Qa6 {[%clk 0:01:04.8]} 29. Qd1
{[%clk 0:00:08.9]} 29... Rb8 {[%clk 0:01:03.3]} 30. Qd3 {[%clk 0:00:09.2]} 30...
Qc8 {[%clk 0:00:58.9]} 31. Rb3 {[%clk 0:00:09.3]} 31... Rcb7 {[%clk 0:00:56.4]}
32. Rxb7 {[%clk 0:00:09]} 32... Qxb7 {[%clk 0:00:57.3]} 33. Qc3 {[%clk
0:00:07.2]} 33... Qb5 {[%clk 0:00:57.5]} 34. Rd1 {[%clk 0:00:04.6]} 34... Qa4
{[%clk 0:00:51.6]} 35. b3 {[%clk 0:00:04.7]} 35... Qg4 {[%clk 0:00:49.8]} 36.
Rd2 {[%clk 0:00:04.3]} 36... a4 {[%clk 0:00:50]} 37. Kb2 {[%clk 0:00:04.3]}
37... axb3 {[%clk 0:00:43.6]} 38. axb3 {[%clk 0:00:04.6]} 38... Nc7 {[%clk
0:00:44.2]} 39. Qd4 {[%clk 0:00:04.1]} 39... Qe6 {[%clk 0:00:42.6]} 40. Rd3
{[%clk 0:00:03.5]} 40... Nd5 {[%clk 0:00:42]} 41. Bd2 {[%clk 0:00:03.5]} 41...
Qe2 {[%clk 0:00:39]} 42. Kc2 {[%clk 0:00:03.1]} 42... Ra8 {[%clk 0:00:37.7]} 43.
Kb1 {[%clk 0:00:02.9]} 43... Qf1+ {[%clk 0:00:30.9]} 44. Bc1 {[%clk 0:00:03.1]}
44... Qxg2 {[%clk 0:00:31.3]} 45. Rd2 {[%clk 0:00:02.8]} 45... Qf3 {[%clk
0:00:30.8]} 46. Qd3 {[%clk 0:00:01.5]} 46... Qf4 {[%clk 0:00:30]} 47. Ra2 {[%clk
0:00:01.6]} 47... Qb8 {[%clk 0:00:25]} 48. Rxa8 {[%clk 0:00:01.9]} 48... Qxa8
{[%clk 0:00:25.9]} 49. Bd2 {[%clk 0:00:02.3]} 49... Qb8 {[%clk 0:00:25.7]} 50.
Qc4 {[%clk 0:00:02.6]} 50... Qh2 {[%clk 0:00:25.1]} 51. Qd4 {[%clk 0:00:02.2]}
51... f5 {[%clk 0:00:22.8]} 52. Kc2 {[%clk 0:00:02.7]} 52... f4 {[%clk
0:00:23.1]} 53. b4 {[%clk 0:00:03]} 53... Nc7 {[%clk 0:00:08]} 54. Bc3 {[%clk
0:00:03.2]} 54... Ne6 {[%clk 0:00:07.9]} 55. Qe4 {[%clk 0:00:02.8]} 55... Qxf2+
{[%clk 0:00:07.5]} 56. Kb1 {[%clk 0:00:02.9]} 56... f3 {[%clk 0:00:07.5]} 57.
Qxc6 {[%clk 0:00:03.2]} 57... Qf1+ {[%clk 0:00:07.4]} 58. Kb2 {[%clk 0:00:03.7]}
58... Qe2+ {[%clk 0:00:07.8]} 59. Kb3 {[%clk 0:00:04]} 59... f2 {[%clk
0:00:08.7]} 60. Qe8+ {[%clk 0:00:03.3]} 60... Kh7 {[%clk 0:00:08.8]} 61. Qxf7
{[%clk 0:00:03.5]} 61... f1=Q {[%clk 0:00:09.1]} 62. Qxf1 {[%clk 0:00:03.7]}
62... Qxf1 {[%clk 0:00:10]} 63. c6 {[%clk 0:00:03.8]} 63... Qd3 {[%clk 0:00:10]}
64. c7 {[%clk 0:00:04.3]} 64... Nxc7 {[%clk 0:00:10.2]} 65. Kb2 {[%clk
0:00:04.9]} 65... Nb5 {[%clk 0:00:10.6]} 0-1

[Event "*** SCC Grand Prix: Titled Tuesday Blitz"]
[Site "Chess.com"]
[Date "2020.06.23"]
[Round "7"]
[White "Iljushin_Alexey"]
[Black "letsgoband"]
[Result "1-0"]
[WhiteElo "2720"]
[BlackElo "2557"]
[TimeControl "180+1"]
[EndTime "11:19:13 PDT"]
[Termination "Iljushin_Alexey won by resignation"]

1. d4 {[%clk 0:03:00.9]} 1... Nf6 {[%clk 0:02:59.7]} 2. c4 {[%clk 0:03:01]} 2...
g6 {[%clk 0:02:59.6]} 3. Nc3 {[%clk 0:03:00.4]} 3... Bg7 {[%clk 0:03:00]} 4. Nf3
{[%clk 0:03:00.4]} 4... O-O {[%clk 0:02:59]} 5. Bf4 {[%clk 0:03:01]} 5... d6
{[%clk 0:02:59.4]} 6. h3 {[%clk 0:03:01.3]} 6... Nbd7 {[%clk 0:02:56.5]} 7. e3
{[%clk 0:03:01.5]} 7... b6 {[%clk 0:02:53.1]} 8. Be2 {[%clk 0:03:01.6]} 8... Bb7
{[%clk 0:02:53.6]} 9. O-O {[%clk 0:03:02.1]} 9... Re8 {[%clk 0:02:52.6]} 10. Rc1
{[%clk 0:02:59.5]} 10... e5 {[%clk 0:02:52.4]} 11. Bh2 {[%clk 0:02:59.4]} 11...
a5 {[%clk 0:02:43.3]} 12. d5 {[%clk 0:02:55.9]} 12... Nc5 {[%clk 0:02:40.5]} 13.
Nd2 {[%clk 0:02:55.4]} 13... Bc8 {[%clk 0:02:36.8]} 14. e4 {[%clk 0:02:52]}
14... Rf8 {[%clk 0:02:28.3]} 15. b3 {[%clk 0:02:52.2]} 15... Nh5 {[%clk
0:02:17.6]} 16. Bxh5 {[%clk 0:02:46.3]} 16... gxh5 {[%clk 0:02:18.5]} 17. Qxh5
{[%clk 0:02:42.8]} 17... f5 {[%clk 0:02:19]} 18. exf5 {[%clk 0:02:37.7]} 18...
Bxf5 {[%clk 0:02:17.1]} 19. Rfe1 {[%clk 0:02:27.7]} 19... Nd3 {[%clk 0:02:15.3]}
20. Nde4 {[%clk 0:02:25.3]} 20... Nxc1 {[%clk 0:02:05.1]} 21. Rxc1 {[%clk
0:02:24.9]} 21... Bg6 {[%clk 0:02:05.3]} 22. Qe2 {[%clk 0:02:22.8]} 22... Bh6
{[%clk 0:02:04.8]} 23. Re1 {[%clk 0:02:21.5]} 23... Rf7 {[%clk 0:01:58.2]} 24.
Bg3 {[%clk 0:02:18.3]} 24... Bf4 {[%clk 0:01:56.6]} 25. Qg4 {[%clk 0:02:07]}
25... Kh8 {[%clk 0:01:44.3]} 26. Bh4 {[%clk 0:02:05.2]} 26... Qd7 {[%clk
0:01:42.8]} 27. Qxd7 {[%clk 0:01:43.3]} 27... Rxd7 {[%clk 0:01:43.7]} 28. Bf6+
{[%clk 0:01:39.7]} 28... Kg8 {[%clk 0:01:43.7]} 29. g3 {[%clk 0:01:39.4]} 29...
Bh6 {[%clk 0:01:17.9]} 30. Bg5 {[%clk 0:01:34.8]} 30... Bxg5 {[%clk 0:01:11.5]}
31. Nxg5 {[%clk 0:01:34]} 31... Rf8 {[%clk 0:01:09.2]} 32. Kg2 {[%clk 0:01:33]}
32... h6 {[%clk 0:01:06.4]} 33. Nge4 {[%clk 0:01:31.9]} 33... Kg7 {[%clk
0:01:06.2]} 34. f3 {[%clk 0:01:30.2]} 34... Bh5 {[%clk 0:01:03.2]} 35. Re3
{[%clk 0:01:29.4]} 35... Rdf7 {[%clk 0:01:03.4]} 36. Nd2 {[%clk 0:01:29.4]}
36... Bg6 {[%clk 0:01:03.4]} 37. Nce4 {[%clk 0:01:28.6]} 37... Ra8 {[%clk
0:00:58.7]} 38. a4 {[%clk 0:01:27.9]} 38... Kf8 {[%clk 0:00:56.7]} 39. g4 {[%clk
0:01:26.7]} 39... Ke7 {[%clk 0:00:55.1]} 40. h4 {[%clk 0:01:24.8]} 40... Kd7
{[%clk 0:00:55.1]} 41. h5 {[%clk 0:01:21.7]} 41... Bh7 {[%clk 0:00:53.8]} 42.
Kg3 {[%clk 0:01:22]} 42... Rg8 {[%clk 0:00:53.4]} 43. Kh4 {[%clk 0:01:13.5]}
43... Rf4 {[%clk 0:00:52.9]} 44. Kg3 {[%clk 0:01:13.1]} 44... Rg7 {[%clk
0:00:48.4]} 45. Nf2 {[%clk 0:01:02.7]} 45... Bc2 {[%clk 0:00:46.2]} 46. Nde4
{[%clk 0:00:58.9]} 46... Rgf7 {[%clk 0:00:36.4]} 47. Rc3 {[%clk 0:00:57.9]}
47... Bxe4 {[%clk 0:00:34.3]} 48. Nxe4 {[%clk 0:00:57.1]} 48... Rg7 {[%clk
0:00:33.8]} 49. Re3 {[%clk 0:00:56.2]} 49... Rf8 {[%clk 0:00:33.2]} 50. Kg2
{[%clk 0:00:54.2]} 50... Rc8 {[%clk 0:00:32.6]} 51. Ng3 {[%clk 0:00:53.4]} 51...
Rf8 {[%clk 0:00:31.4]} 52. Kf2 {[%clk 0:00:52.2]} 52... Rg5 {[%clk 0:00:31]} 53.
Ke2 {[%clk 0:00:50.7]} 53... Rf4 {[%clk 0:00:31.1]} 54. Ne4 {[%clk 0:00:46.7]}
54... Rg7 {[%clk 0:00:30.7]} 55. Rd3 {[%clk 0:00:47.2]} 55... Ke7 {[%clk
0:00:27.2]} 56. Re3 {[%clk 0:00:47.3]} 56... Kf7 {[%clk 0:00:27.1]} 57. Rd3
{[%clk 0:00:47.4]} 57... Rgxg4 {[%clk 0:00:23.8]} 58. Nxd6+ {[%clk 0:00:45.1]}
58... cxd6 {[%clk 0:00:23.8]} 59. fxg4 {[%clk 0:00:45.4]} 59... Rxg4 {[%clk
0:00:24.1]} 60. Rf3+ {[%clk 0:00:46.1]} 60... Kg7 {[%clk 0:00:24]} 61. Kf2
{[%clk 0:00:39.3]} 61... Rg5 {[%clk 0:00:23.7]} 62. b4 {[%clk 0:00:36.3]} 62...
axb4 {[%clk 0:00:23.6]} 63. Rb3 {[%clk 0:00:36]} 63... Rxh5 {[%clk 0:00:19]} 64.
Rxb4 {[%clk 0:00:36.6]} 64... Rh4 {[%clk 0:00:15.4]} 65. Ke3 {[%clk 0:00:35.9]}
65... Rh3+ {[%clk 0:00:14.2]} 66. Ke4 {[%clk 0:00:35.3]} 66... Kf7 {[%clk
0:00:10.3]} 67. Rxb6 {[%clk 0:00:34.7]} 67... Rh4+ {[%clk 0:00:07.3]} 68. Kd3
{[%clk 0:00:34]} 68... Rh3+ {[%clk 0:00:07.8]} 69. Kd2 {[%clk 0:00:34]} 69...
Ke7 {[%clk 0:00:07.4]} 70. Rb7+ {[%clk 0:00:32.7]} 70... Kf6 {[%clk 0:00:07.3]}
71. Rd7 {[%clk 0:00:33.2]} 71... Ra3 {[%clk 0:00:06.4]} 72. Rxd6+ {[%clk
0:00:32.8]} 72... Kf5 {[%clk 0:00:07.1]} 73. Rxh6 {[%clk 0:00:30.3]} 73... Rxa4
{[%clk 0:00:07.7]} 74. Kc3 {[%clk 0:00:30.6]} 74... e4 {[%clk 0:00:07.5]} 75.
Kd4 {[%clk 0:00:28.7]} 75... e3 {[%clk 0:00:06.1]} 76. Re6 {[%clk 0:00:28.2]}
1-0

[Event "*** SCC Grand Prix: Titled Tuesday Blitz"]
[Site "Chess.com"]
[Date "2020.06.23"]
[Round "7"]
[White "ferdipy"]
[Black "vinniethepooh"]
[Result "1/2-1/2"]
[WhiteElo "2382"]
[BlackElo "2565"]
[TimeControl "180+1"]
[EndTime "11:19:14 PDT"]
[Termination "Game drawn - insufficient material"]

1. e4 {[%clk 0:03:00.9]} 1... c5 {[%clk 0:02:59]} 2. d4 {[%clk 0:03:00.6]} 2...
cxd4 {[%clk 0:02:58.9]} 3. c3 {[%clk 0:03:01]} 3... Nf6 {[%clk 0:02:54.8]} 4. e5
{[%clk 0:03:00.9]} 4... Nd5 {[%clk 0:02:55.2]} 5. cxd4 {[%clk 0:03:01.8]} 5...
d6 {[%clk 0:02:55.7]} 6. Nf3 {[%clk 0:03:02.7]} 6... Nc6 {[%clk 0:02:56]} 7. h3
{[%clk 0:03:02.7]} 7... e6 {[%clk 0:02:55.1]} 8. a3 {[%clk 0:03:02.6]} 8... Be7
{[%clk 0:02:54.7]} 9. Bd3 {[%clk 0:03:03.1]} 9... O-O {[%clk 0:02:55]} 10. O-O
{[%clk 0:03:03.1]} 10... b6 {[%clk 0:02:53.8]} 11. Qc2 {[%clk 0:03:03.4]} 11...
Bb7 {[%clk 0:02:51.8]} 12. Bxh7+ {[%clk 0:03:03.5]} 12... Kh8 {[%clk 0:02:52.4]}
13. Bd3 {[%clk 0:02:55.4]} 13... Rc8 {[%clk 0:02:52.3]} 14. Qe2 {[%clk
0:02:55.1]} 14... g6 {[%clk 0:02:37.3]} 15. Bd2 {[%clk 0:02:53.2]} 15... Kg7
{[%clk 0:02:34.1]} 16. Nc3 {[%clk 0:02:52.9]} 16... Na5 {[%clk 0:02:25]} 17.
Nxd5 {[%clk 0:02:44.8]} 17... Bxd5 {[%clk 0:02:21.8]} 18. Bc3 {[%clk 0:02:40.6]}
18... Nb3 {[%clk 0:02:16.3]} 19. Rad1 {[%clk 0:02:39.6]} 19... Qc7 {[%clk
0:02:11]} 20. exd6 {[%clk 0:02:32.4]} 20... Bxd6 {[%clk 0:02:09.8]} 21. Ne5
{[%clk 0:02:32.8]} 21... Rh8 {[%clk 0:02:06.9]} 22. Qg4 {[%clk 0:02:28.1]} 22...
Rh6 {[%clk 0:01:56.6]} 23. Bd2 {[%clk 0:02:21.2]} 23... Nxd2 {[%clk 0:01:54.6]}
24. Rxd2 {[%clk 0:02:21]} 24... Bxe5 {[%clk 0:01:52.2]} 25. Rc2 {[%clk 0:02:12]}
25... Bh2+ {[%clk 0:01:09]} 26. Kh1 {[%clk 0:02:10.9]} 26... Bc6 {[%clk
0:01:04]} 27. d5 {[%clk 0:01:57.1]} 27... exd5 {[%clk 0:00:53.9]} 28. Rfc1
{[%clk 0:01:57.1]} 28... Be5 {[%clk 0:00:22.3]} 29. b4 {[%clk 0:01:44]} 29...
Bd7 {[%clk 0:00:14.7]} 30. Rxc7 {[%clk 0:01:41]} 30... Bxg4 {[%clk 0:00:09.4]}
31. Rxc8 {[%clk 0:01:41.1]} 31... Bxc8 {[%clk 0:00:10.2]} 32. Rxc8 {[%clk
0:01:37.4]} 32... Rh4 {[%clk 0:00:10.8]} 33. g3 {[%clk 0:01:32.8]} 33... Rd4
{[%clk 0:00:09.8]} 34. Bb5 {[%clk 0:01:29.9]} 34... Rd2 {[%clk 0:00:07.8]} 35.
Kg2 {[%clk 0:01:28.8]} 35... Bd4 {[%clk 0:00:07.7]} 36. Rd8 {[%clk 0:01:15.7]}
36... Bxf2 {[%clk 0:00:07.5]} 37. Kf3 {[%clk 0:01:12.8]} 37... d4 {[%clk
0:00:07.8]} 38. Rd7 {[%clk 0:01:10.3]} 38... Be3 {[%clk 0:00:07.8]} 39. Rxa7
{[%clk 0:01:06.7]} 39... Rf2+ {[%clk 0:00:06]} 40. Ke4 {[%clk 0:01:06.2]} 40...
Kh6 {[%clk 0:00:05.9]} 41. g4 {[%clk 0:01:04.9]} 41... f5+ {[%clk 0:00:05.9]}
42. gxf5 {[%clk 0:01:05.2]} 42... gxf5+ {[%clk 0:00:06.8]} 43. Ke5 {[%clk
0:01:01]} 43... Kg5 {[%clk 0:00:07.1]} 44. Bd3 {[%clk 0:00:47.4]} 44... f4
{[%clk 0:00:06.1]} 45. a4 {[%clk 0:00:41.2]} 45... Kh4 {[%clk 0:00:05.9]} 46.
Rh7+ {[%clk 0:00:39.4]} 46... Kg3 {[%clk 0:00:05.9]} 47. a5 {[%clk 0:00:27]}
47... bxa5 {[%clk 0:00:06.8]} 48. bxa5 {[%clk 0:00:26.4]} 48... Ra2 {[%clk
0:00:07.7]} 49. a6 {[%clk 0:00:23.3]} 49... f3 {[%clk 0:00:07.8]} 50. Ke4 {[%clk
0:00:22.5]} 50... f2 {[%clk 0:00:07.6]} 51. Rg7+ {[%clk 0:00:22.8]} 51... Kh2
{[%clk 0:00:07.8]} 52. h4 {[%clk 0:00:22.5]} 52... Ra3 {[%clk 0:00:05.8]} 53.
Bf1 {[%clk 0:00:21.9]} 53... Ra1 {[%clk 0:00:05.7]} 54. Bd3 {[%clk 0:00:22.1]}
54... f1=Q {[%clk 0:00:05.8]} 55. Bxf1 {[%clk 0:00:22.5]} 55... Rxf1 {[%clk
0:00:06.7]} 56. a7 {[%clk 0:00:22]} 56... Ra1 {[%clk 0:00:06]} 57. h5 {[%clk
0:00:22.4]} 57... Ra6 {[%clk 0:00:04.8]} 58. Kf3 {[%clk 0:00:19.8]} 58... Ra4
{[%clk 0:00:04.7]} 59. h6 {[%clk 0:00:17.6]} 59... Bxh6 {[%clk 0:00:04.6]} 60.
Rh7 {[%clk 0:00:18]} 60... Kg1 {[%clk 0:00:03.6]} 61. Rxh6 {[%clk 0:00:17.4]}
61... Rxa7 {[%clk 0:00:03.6]} 62. Ke4 {[%clk 0:00:17.4]} 62... Ra4 {[%clk
0:00:03.2]} 63. Kd3 {[%clk 0:00:17.1]} 63... Ra3+ {[%clk 0:00:03.3]} 64. Kxd4
{[%clk 0:00:15.8]} 64... Rg3 {[%clk 0:00:04.2]} 65. Re6 {[%clk 0:00:15.4]} 65...
Rg2 {[%clk 0:00:05.1]} 66. Re4 {[%clk 0:00:15.5]} 66... Kf2 {[%clk 0:00:04.7]}
67. Rf4+ {[%clk 0:00:12.4]} 67... Kg3 {[%clk 0:00:05]} 68. Re4 {[%clk
0:00:12.4]} 68... Rh2 {[%clk 0:00:05.3]} 69. Re3+ {[%clk 0:00:12.5]} 69... Kg2
{[%clk 0:00:05.4]} 70. Re2+ {[%clk 0:00:12.6]} 70... Kg3 {[%clk 0:00:06.3]} 71.
Rxh2 {[%clk 0:00:13.1]} 71... Kxh2 {[%clk 0:00:07.2]} 1/2-1/2